bitfinex-derivatives/quotes_ETHF0:USTF0_20251118
["timestamp","ask_amount","ask_price","bid_price","bid_amount"]
[1763469216808,0.00827443,3051.6,3051.5,0.37434468]
[1763469217814,0.24097443,3051.6,3051.5,0.14594468]
[1763469218211,0.00827443,3051.6,3051.5,0.37434468]
[1763469218611,3.2078,3052.0,3051.9,0.2284]
[1763469219214,3.2078,3052.5,3052.0,0.1428]
[1763469219612,3.211983,3052.5,3052.0,0.1428]
[1763469220008,3.211983,3052.5,3052.4,0.2284]
[1763469220808,0.004183,3052.5,3052.4,0.2284]
[1763469221210,0.00491047,3052.6,3052.5,0.3712]
[1763469221414,3.2078,3053.3,3053.0,0.1428]
[1763469221604,0.2347,3053.1,3053.0,0.1428]
[1763469222414,0.23848605,3053.1,3053.0,0.1428]
[1763469222718,0.2347,3052.8,3052.7,0.00491047]
[1763469223014,3.4425,3052.8,3052.7,0.00491047]
[1763469223214,0.2347,3052.8,3052.7,0.00491047]
[1763469226114,0.00378605,3053.1,3052.7,0.23331047]
[1763469226315,0.00378605,3053.1,3053.0,0.1428]
[1763469226514,0.23848605,3053.1,3053.0,0.1428]
[1763469226713,0.2347,3052.1,3052.0,0.1428]
[1763469227018,0.2347,3052.1,3051.5,0.14594468]
[1763469227911,0.2347,3051.6,3051.5,0.15085515]
[1763469228120,0.2347,3051.6,3051.5,0.00805515]
[1763469228707,0.2347,3051.6,3051.5,0.15085515]
[1763469230118,0.2347,3051.6,3051.5,0.00805515]
[1763469232023,0.2288,3050.7,3050.6,3.2078]
[1763469233125,0.2323642,3050.7,3050.6,3.21176189]
[1763469233321,0.0035642,3050.7,3050.6,3.44016189]
[1763469239613,3.2078,3051.4,3051.0,0.1367]
[1763469240628,3.21059897,3051.4,3051.0,0.1367]
[1763469240829,0.226,3051.1,3051.0,0.1367]
[1763469241226,0.226,3050.7,3050.6,0.00396189]
[1763469242130,3.2078,3050.9,3050.6,0.24436189]
[1763469242430,0.226,3050.7,3050.6,0.00396189]
[1763469242825,3.2078,3050.9,3050.6,0.24436189]
[1763469243028,3.2078,3050.9,3050.8,0.2404]
[1763469243522,3.2078,3051.3,3051.0,0.1367]
[1763469243727,3.4338,3051.3,3051.2,0.2404]
[1763469244330,3.2078,3051.3,3051.2,0.2404]
[1763469244828,0.00279897,3051.4,3051.3,0.2404]
[1763469245132,0.2288,3051.8,3051.5,0.1367]
[1763469245733,0.2288,3051.6,3051.0,3.3445]
[1763469246029,3.4366,3051.6,3051.0,3.3445]
[1763469246227,3.44004827,3051.6,3051.0,3.3445]
[1763469247124,0.2288,3051.1,3051.0,3.3445]
[1763469247428,3.21124827,3051.6,3051.0,0.3771]
[1763469247730,0.2288,3051.1,3051.0,0.1367]
[1763469248124,0.2288,3051.1,3051.0,0.3771]
[1763469248323,0.2288,3050.7,3050.6,0.00396189]
[1763469248826,3.2078,3051.1,3050.6,0.00396189]
[1763469249925,3.2078,3051.1,3051.0,0.3771]
[1763469250127,3.2078,3051.5,3051.0,0.3771]
[1763469250317,0.2288,3050.7,3050.6,0.00396189]
[1763469251622,0.2288,3050.7,3050.6,0.24436189]
[1763469251923,3.2078,3051.1,3050.6,0.24436189]
[1763469252323,0.2288,3050.7,3050.6,0.24436189]
[1763469253534,3.4366,3050.7,3050.6,0.00396189]
[1763469254030,0.2249,3050.1,3049.8,3.2078]
[1763469254234,3.2078,3050.3,3049.8,3.2078]
[1763469254634,3.2078,3050.7,3049.8,3.2078]
[1763469255037,3.21271047,3050.7,3050.5,0.1367]
[1763469255534,3.21271047,3050.7,3050.2,3.2078]
[1763469256235,3.21271047,3050.7,3050.6,0.2404]
[1763469256436,0.00491047,3050.7,3050.6,0.2404]
[1763469278760,3.21271047,3050.7,3050.0,0.39506955]
[1763469278959,0.72761162,3050.6,3050.0,0.39506955]
[1763469279262,0.72761162,3050.6,3050.5,0.142]
[1763469282165,0.72761162,3050.6,3050.0,0.15036955]
[1763469282460,0.72761162,3050.6,3050.5,0.142]
[1763469283359,0.33360504,3050.6,3050.5,0.3867]
[1763469283560,0.00491047,3050.7,3050.6,0.2447]
[1763469286863,3.2078,3051.5,3051.4,0.2447]
[1763469287566,0.00344827,3051.6,3051.5,0.3867]
[1763469287760,0.00344827,3051.6,3051.5,3.5945]
[1763469291666,0.00491047,3051.9,3051.8,0.2447]
[1763469292767,0.23748111,3051.9,3051.8,0.2447]
[1763469293367,3.2078,3052.3,3051.8,0.2447]
[1763469294365,3.21166232,3052.3,3051.8,0.2447]
[1763469295569,3.21166232,3052.3,3052.2,0.2447]
[1763469295869,3.21166232,3052.3,3052.2,0.24811311]
[1763469296066,3.44146232,3052.3,3052.2,0.00341311]
[1763469300466,0.2391,3051.6,3051.5,3.35471047]
[1763469300670,0.2391,3051.6,3051.5,0.00491047]
[1763469300871,0.2391,3051.2,3051.1,3.2078]
[1763469301069,0.2391,3050.8,3050.5,0.142]
[1763469301269,0.2391,3050.6,3050.3,3.2078]
[1763469301472,0.2391,3050.4,3050.3,3.21201947]
[1763469301775,3.4469,3050.7,3050.6,0.2336]
[1763469302175,3.4469,3050.7,3050.3,3.21692994]
[1763469302877,3.4469,3050.7,3050.6,0.2336]
[1763469303574,3.4469,3050.7,3050.3,3.21692994]
[1763469304075,0.00491047,3051.0,3050.9,0.2336]
[1763469304674,3.2078,3051.3,3051.2,0.2336]
[1763469304874,3.4469,3051.3,3051.2,0.2336]
[1763469305069,0.2391,3051.1,3051.0,0.1351]
[1763469305276,0.2391,3050.8,3050.5,0.1351]
[1763469305574,3.2078,3051.3,3051.2,0.2336]
[1763469305973,3.4469,3051.3,3051.2,0.2336]
[1763469306277,0.2391,3051.1,3050.7,3.2078]
[1763469306771,0.2391,3050.8,3050.7,3.4414]
[1763469307169,3.2078,3051.3,3050.7,3.4414]
[1763469307872,0.00491047,3051.6,3051.5,0.3687]
[1763469310573,0.2391,3051.3,3051.2,3.2078]
[1763469311272,0.2391,3051.3,3050.6,3.2078]
[1763469317573,3.2078,3051.4,3051.3,0.2336]
[1763469317773,0.24401047,3051.6,3051.5,0.3687]
[1763469317974,0.24401047,3051.6,3051.1,3.2078]
[1763469318174,0.96625777,3051.6,3051.1,3.2078]
[1763469318375,0.24401047,3051.6,3051.1,3.2078]
[1763469319081,0.24401047,3051.6,3051.5,3.5765]
[1763469322980,0.00491047,3051.6,3051.5,3.5765]
[1763469323175,0.72283835,3051.9,3051.8,0.2302]
[1763469323584,0.72283835,3052.1,3051.8,0.2302]
[1763469323895,0.96453835,3052.1,3052.0,0.3706]
[1763469324794,0.96453835,3052.1,3052.0,0.2302]
[1763469325990,0.96453835,3052.1,3051.5,3.3429]
[1763469326192,0.72283835,3052.0,3051.5,3.3429]
[1763469326490,0.96453835,3051.9,3051.8,0.2302]
[1763469327189,0.2417,3051.9,3051.8,0.2302]
[1763469327385,3.2078,3052.2,3051.8,0.2302]
[1763469327592,0.95385414,3052.1,3052.0,0.3669]
[1763469328292,0.95385414,3052.1,3052.0,0.2273]
[1763469329091,0.95385414,3052.1,3051.5,3.3429]
[1763469329291,0.72365414,3052.0,3051.5,3.3429]
[1763469329490,3.2078,3052.2,3051.5,3.3429]
[1763469329695,0.72391197,3052.1,3051.5,3.3429]
[1763469334297,0.72391197,3052.1,3051.6,3.2078]
[1763469334601,0.2302,3052.1,3052.0,0.1396]
[1763469334896,0.95498808,3052.1,3051.5,0.1351]
[1763469335094,3.2078,3051.9,3051.5,0.1351]
[1763469335593,0.95520548,3051.8,3051.7,0.2273]
[1763469335794,0.95520548,3051.8,3051.0,1.90374919]
[1763469335795,0.2302,3051.1,3051.0,0.2273]
[1763469336592,0.95509558,3051.1,3051.0,0.2273]
[1763469336794,3.2078,3051.4,3051.0,0.3669]
[1763469337098,0.2302,3051.1,3051.0,0.3669]
[1763469338596,0.95505912,3051.1,3051.0,0.3669]
[1763469339302,0.72485912,3051.1,3051.0,0.3669]
[1763469339495,0.2302,3051.4,3051.3,0.2273]
[1763469339695,0.95505206,3051.4,3051.3,0.2273]
[1763469342218,0.95505206,3051.4,3051.0,0.1396]
[1763469342418,0.72485206,3051.3,3051.0,0.1396]
[1763469342818,0.95505206,3051.3,3051.2,0.2273]
[1763469347624,0.95511691,3051.3,3051.2,0.2273]
[1763469348320,0.72491691,3051.3,3051.2,0.2273]
[1763469348526,0.72491691,3051.7,3051.2,0.2273]
[1763469349229,0.95511691,3051.7,3051.6,0.2273]
[1763469349723,0.72491691,3051.7,3051.6,0.2273]
[1763469349933,0.2302,3051.7,3051.6,0.2273]
[1763469350226,0.00386232,3052.3,3052.2,0.2273]
[1763469350617,0.1413,3053.5,3052.3,0.2273]
[1763469350818,1.047e-05,3052.4,3052.3,0.2273]
[1763469351824,0.00327463,3052.4,3052.3,0.2273]
[1763469352027,0.00327463,3052.4,3052.3,0.48434064]
[1763469352223,3.2078,3053.2,3052.3,0.2273]
[1763469352430,0.72401984,3053.1,3052.5,3.3474]
[1763469353120,0.73258624,3053.1,3052.5,3.35048675]
[1763469353320,0.95421984,3053.0,3052.9,0.2273]
[1763469355231,1.09941984,3053.0,3052.5,3.35048675]
[1763469355429,0.95421984,3052.9,3052.8,0.2273]
[1763469355734,0.2302,3052.9,3052.8,0.2273]
[1763469359530,0.2305,3052.6,3052.5,3.59868675]
[1763469359927,0.2305,3052.6,3052.5,0.00308675]
[1763469360132,0.2305,3052.0,3051.9,0.00491047]
[1763469360438,0.3717,3052.0,3051.9,0.00491047]
[1763469361140,0.3717,3052.0,3051.9,0.00853414]
[1763469362326,0.2305,3051.1,3051.0,0.3878]
[1763469363334,0.2305,3051.1,3051.0,0.39189527]
[1763469364026,0.2305,3051.1,3051.0,0.00409527]
[1763469364235,3.4383,3051.1,3051.0,0.00409527]
[1763469366941,3.4383,3051.1,3050.0,0.1455]
[1763469366942,0.2305,3049.6,3049.1,3.2078]
[1763469367732,0.23381347,3049.6,3049.3,0.16321672]
[1763469368046,3.4383,3049.4,3049.3,0.16321672]
[1763469368840,0.2305,3049.2,3048.7,0.0328014]
[1763469369151,0.2305,3048.4,3048.3,3.456]
[1763469369934,0.2305,3048.4,3048.3,3.45864009]
[1763469371042,3.2078,3049.4,3048.7,0.2482]
[1763469371347,3.2078,3049.4,3048.7,3.456]
[1763469372339,3.2078,3049.4,3049.3,0.2482]
[1763469373043,0.00331347,3049.6,3049.3,0.2482]
[1763469373353,0.00331347,3049.6,3049.5,0.3937]
[1763469374439,0.23381347,3049.6,3049.5,0.1455]
[1763469374847,0.00331347,3049.6,3049.5,0.3937]
[1763469375544,3.2078,3050.3,3050.2,0.2482]
[1763469375933,3.4383,3050.3,3050.0,0.1455]
[1763469376343,0.2305,3050.1,3050.0,0.1455]
[1763469376649,0.23310006,3050.1,3050.0,0.3937]
[1763469377646,0.00260006,3050.1,3050.0,0.3937]
[1763469378747,0.00260006,3050.1,3050.0,3.6015]
[1763469383547,6e-08,3050.1,3050.0,3.6015]
[1763469385647,3.2078,3051.2,3051.1,0.2247]
[1763469386052,3.2078,3051.6,3051.1,0.2247]
[1763469386349,3.2078,3051.6,3051.5,0.3613]
[1763469386560,3.21139822,3051.6,3051.5,0.36437604]
[1763469388450,0.00359822,3051.6,3051.5,0.36437604]
[1763469391150,0.00491892,3051.9,3051.8,0.2402]
[1763469392259,0.00766679,3051.9,3051.8,0.2402]
[1763469393955,3.2078,3052.5,3052.4,0.2402]
[1763469394953,3.21125215,3052.5,3052.4,0.2402]
[1763469395149,0.00345215,3052.5,3052.4,0.2402]
[1763469395848,0.00489329,3052.8,3052.7,0.2402]
[1763469396051,0.00489329,3052.8,3052.7,3.448]
[1763469396354,3.2078,3053.9,3052.7,3.448]
[1763469396554,3.2078,3053.9,3053.1,3.2078]
[1763469396953,0.03883076,3053.7,3053.1,3.2078]
[1763469397150,0.03883076,3053.7,3053.1,3.21271892]
[1763469397858,0.03883076,3053.7,3053.6,0.2402]
[1763469399457,0.28783076,3053.7,3053.6,0.2402]
[1763469399756,0.249,3053.6,3053.5,0.3851]
[1763469400160,0.28783076,3053.7,3053.6,0.2402]
[1763469400351,0.249,3053.6,3053.1,3.21271892]
[1763469400659,0.03883076,3053.7,3053.5,0.3851]
[1763469400952,0.03883076,3053.7,3053.6,0.2402]
[1763469402861,5.5015838,3055.3,3054.7,0.2402]
[1763469402862,3.2078,3055.2,3054.7,0.2402]
[1763469403058,0.249,3054.6,3054.5,0.1449]
[1763469403258,0.249,3054.6,3054.0,3.3527]
[1763469403259,0.249,3054.6,3054.2,0.00490998]
[1763469403559,0.249,3054.6,3054.5,0.3851]
[1763469403763,0.25137044,3054.6,3054.5,0.38845024]
[1763469404563,0.00237044,3054.6,3054.5,0.38845024]
[1763469404863,0.25137044,3054.6,3054.5,0.38845024]
[1763469405164,0.00237044,3054.6,3054.5,0.38845024]
[1763469406249,0.25137044,3054.6,3054.5,0.38845024]
[1763469407060,0.00237044,3054.6,3054.5,0.38845024]
[1763469410068,0.25137044,3054.6,3054.5,0.38845024]
[1763469411762,0.00237044,3054.6,3054.5,0.38845024]
[1763469413666,0.25137044,3054.6,3054.5,0.00335024]
[1763469414856,0.25137044,3054.6,3054.5,0.38845024]
[1763469415265,0.00237044,3054.6,3054.5,0.38845024]
[1763469416563,3.2078,3055.2,3055.1,0.2402]
[1763469416858,3.2078,3055.7,3055.1,0.2402]
[1763469417059,3.2078,3055.7,3055.6,0.2402]
[1763469417256,3.2078,3056.1,3055.6,0.2402]
[1763469417458,0.71607814,3056.0,3055.6,0.2402]
[1763469417658,0.71607814,3056.0,3055.9,0.246]
[1763469417867,0.00391428,3056.1,3056.0,0.3914]
[1763469418068,0.72004515,3056.1,3056.0,0.3914]
[1763469418460,0.00391428,3056.1,3056.0,0.3914]
[1763469418867,22.93319774,3056.2,3056.0,0.3914]
[1763469418868,22.18439774,3056.2,3056.1,0.246]
[1763469419165,3.2078,3057.3,3056.9,0.246]
[1763469419469,0.1478,3057.0,3056.9,0.246]
[1763469419862,0.39255103,3057.0,3056.9,0.00342149]
[1763469420766,0.00385103,3057.0,3056.9,0.24942149]
[1763469420970,0.39255103,3057.0,3056.9,0.00342149]
[1763469421165,0.2409,3056.3,3056.2,3.2078]
[1763469421558,0.2409,3056.3,3056.2,3.4538]
[1763469421764,0.00385103,3057.0,3056.9,0.246]
[1763469422366,0.00385103,3057.0,3056.9,0.2497338]
[1763469423570,0.71697919,3057.8,3057.0,0.1411]
[1763469423771,0.71697919,3057.8,3057.7,0.246]
[1763469424072,3.3556,3058.5,3057.7,0.246]
[1763469424266,0.71711571,3058.4,3057.9,3.2078]
[1763469424673,0.72059665,3058.4,3057.9,3.2078]
[1763469425167,0.72059665,3058.4,3057.4,0.00490998]
[1763469425168,0.3887,3058.0,3057.4,3.21270998]
[1763469425870,0.1478,3057.5,3057.4,3.21270998]
[1763469426077,0.3887,3057.5,3057.4,3.21270998]
[1763469426267,0.3887,3057.5,3057.4,0.00490998]
[1763469426969,6.3887,3057.5,3057.4,0.00490998]
[1763469427172,0.3887,3057.0,3056.9,3.2115338]
[1763469427366,0.3887,3057.0,3056.9,0.0037338]
[1763469428076,0.2409,3056.6,3056.5,3.2078]
[1763469429075,3.2078,3056.9,3056.5,3.2112267]
[1763469429371,0.2409,3056.6,3056.5,3.2112267]
[1763469431578,3.2078,3056.9,3056.8,0.246]
[1763469431874,3.2078,3056.9,3056.5,3.2112267]
[1763469431875,0.2409,3056.6,3056.5,3.2112267]
[1763469432275,0.2409,3056.6,3056.5,0.0034267]
[1763469432672,0.95736734,3056.6,3056.5,0.0034267]
[1763469432977,3.2078,3056.9,3056.5,0.2494267]
[1763469433178,0.71650531,3056.8,3056.5,0.2494267]
[1763469433367,0.2409,3056.6,3056.5,0.0034267]
[1763469433970,0.95743708,3056.6,3056.5,0.0034267]
[1763469435272,0.71653708,3056.6,3056.5,0.2494267]
[1763469435475,3.2078,3056.9,3056.5,0.2494267]
[1763469435669,0.71698326,3056.8,3056.5,0.2494267]
[1763469435871,0.2409,3056.6,3056.5,0.0034267]
[1763469436085,0.95788326,3056.6,3056.5,0.0034267]
[1763469442484,0.2467,3055.8,3055.7,3.2078]
[1763469443185,0.2467,3055.8,3055.3,3.2078]
[1763469443485,0.1487,3055.5,3055.3,3.21044229]
[1763469445080,0.2467,3055.4,3055.3,3.21044229]
[1763469445282,0.96690547,3055.4,3055.3,0.00264229]
[1763469446287,0.2467,3054.6,3054.5,3.2078]
[1763469447282,0.2467,3054.6,3054.5,3.21187971]
[1763469448081,0.2467,3054.6,3054.5,3.45207971]
[1763469448782,0.2467,3054.6,3054.5,3.21187971]
[1763469448987,3.4545,3054.6,3054.5,0.00407971]
[1763469449791,4.17354381,3054.6,3054.5,0.00407971]
[1763469450184,3.4545,3054.6,3054.5,0.00407971]
[1763469451078,0.2401,3053.8,3053.3,3.2078]
[1763469451280,0.1466,3054.0,3053.4,0.2425]
[1763469451281,0.1466,3053.5,3053.4,0.2425]
[1763469451482,3.2078,3053.9,3053.4,0.2425]
[1763469451991,0.1466,3053.5,3053.4,0.24529688]
[1763469452189,0.00250592,3053.9,3053.8,0.2425]
[1763469452889,3.2078,3054.9,3054.0,0.0428]
[1763469453190,3.2078,3054.9,3054.1,3.2078]
[1763469453883,0.00490998,3054.8,3054.1,3.2078]
[1763469454492,0.24500998,3054.8,3054.1,3.2078]
[1763469456390,0.00490998,3054.8,3054.7,0.2425]
[1763469457489,0.00490998,3054.8,3054.1,3.2078]
[1763469457490,0.24500998,3054.8,3054.1,3.2078]
[1763469457796,3.3544,3054.5,3054.1,3.2078]
[1763469461693,0.2401,3054.2,3054.1,3.2078]
[1763469461896,0.1466,3054.0,3053.9,0.2425]
[1763469462193,0.3867,3054.0,3053.7,3.2078]
[1763469462497,0.2401,3053.8,3053.7,3.2078]
[1763469462698,0.2401,3053.8,3053.7,3.4503]
[1763469462898,0.1466,3054.0,3053.7,3.4503]
[1763469463098,3.3544,3054.5,3053.9,0.2425]
[1763469463693,0.1466,3054.0,3053.9,0.2425]
[1763469464505,3.3544,3054.5,3053.9,0.2425]
[1763469466599,0.3867,3054.0,3053.9,0.2425]
[1763469467503,3.3544,3054.5,3054.4,0.2425]
[1763469467714,4.074798,3054.5,3054.4,0.2425]
[1763469468006,3.2078,3054.5,3054.4,0.2425]
[1763469468207,3.9287435,3054.5,3054.4,0.2425]
[1763469468402,3.2078,3054.5,3054.4,0.2425]
[1763469468704,0.00490998,3054.8,3054.4,3.4503]
[1763469468900,0.72585061,3054.8,3054.4,3.4503]
[1763469469409,0.3867,3054.5,3054.0,3.2078]
[1763469470001,0.00490998,3054.8,3054.7,0.2425]
[1763469470205,0.96664179,3054.8,3054.7,0.2425]
[1763469470404,0.96664179,3054.8,3054.0,3.2506]
[1763469470710,0.00490998,3054.8,3054.7,0.2425]
[1763469470912,0.72777579,3054.8,3054.7,0.2425]
[1763469471109,0.00490998,3054.8,3054.7,0.2425]
[1763469471409,0.7278389,3054.8,3054.7,0.2425]
[1763469474221,0.33440856,3054.8,3054.7,0.2425]
[1763469474821,3.21130662,3054.9,3054.8,0.2425]
[1763469476418,3.45140662,3054.9,3054.5,3.2078]
[1763469476721,3.21130662,3054.9,3054.8,0.2425]
[1763469479120,0.25260662,3054.9,3054.8,0.2425]
[1763469479325,0.25260662,3054.9,3054.5,3.2078]
[1763469479621,0.2491,3054.6,3054.5,3.4563]
[1763469479830,0.00350662,3054.9,3054.8,0.2485]
[1763469480321,0.00490998,3055.2,3055.1,0.2485]
[1763469480524,0.00490998,3055.2,3055.1,3.4563]
[1763469481416,0.00790731,3055.2,3055.1,3.4563]
[1763469482112,0.1466,3056.0,3055.1,3.4563]
[1763469482313,0.1466,3056.0,3055.5,3.2078]
[1763469483120,0.15017517,3056.0,3055.5,3.2078]
[1763469483722,0.39927517,3056.0,3055.9,0.2485]
[1763469484027,0.39927517,3056.0,3055.9,0.25087267]
[1763469485128,0.39927517,3056.0,3055.9,0.00237267]
[1763469485525,0.15017517,3056.0,3055.9,0.25087267]
[1763469486031,0.00357517,3056.0,3055.9,0.25087267]
[1763469486223,0.00357517,3056.0,3055.9,3.45867267]
[1763469486634,0.0048802,3056.1,3056.0,0.2913]
[1763469487530,0.00821414,3056.1,3056.0,0.2913]
[1763469488920,0.3965,3056.0,3055.9,3.21017267]
[1763469489123,0.3965,3056.0,3055.9,3.45867267]
[1763469489325,0.1474,3056.0,3055.9,3.45867267]
[1763469490234,0.3965,3056.0,3055.9,3.21017267]
[1763469490931,0.3965,3056.0,3055.9,3.45867267]
[1763469491437,0.3965,3056.0,3055.9,3.21017267]
[1763469494223,0.3965,3056.0,3055.9,0.00237267]
[1763469494429,0.2491,3055.6,3055.5,3.2078]
[1763469494625,0.2491,3055.2,3055.1,3.2078]
[1763469494826,0.2491,3055.2,3054.8,0.00490998]
[1763469494827,0.2491,3054.9,3054.8,0.00490998]
[1763469495022,0.2491,3054.4,3054.3,3.2078]
[1763469495434,0.2491,3054.4,3054.3,3.21161849]
[1763469495635,3.4569,3054.4,3054.3,0.00381849]
[1763469496038,0.1474,3054.0,3053.4,3.2078]
[1763469496634,3.3552,3054.0,3053.4,3.2078]
[1763469497029,0.3965,3053.5,3053.4,3.21642848]
[1763469497232,0.00369488,3053.5,3053.4,3.46492848]
[1763469498931,0.40019488,3053.5,3053.4,3.46492848]
[1763469499140,0.40019488,3053.5,3053.4,3.21642848]
[1763469499439,0.15109488,3053.5,3053.4,3.46492848]
[1763469500033,0.00369488,3053.5,3053.4,3.46492848]
[1763469500932,0.00490998,3054.0,3053.9,0.2298]
[1763469501943,0.00900841,3054.0,3053.9,0.2298]
[1763469502131,3.2078,3054.9,3053.9,9.4376]
[1763469502436,3.2078,3054.9,3054.3,3.2078]
[1763469503233,3.21539899,3054.9,3054.3,3.2078]
[1763469504039,0.2345,3054.4,3054.3,3.2078]
[1763469504244,0.1482,3054.5,3054.4,0.2298]
[1763469504435,0.3827,3054.5,3054.4,0.2298]
[1763469504628,0.3827,3054.5,3054.3,3.2078]
[1763469504835,0.2345,3054.4,3054.3,3.2078]
[1763469506437,0.2345,3054.4,3054.3,3.4376]
[1763469507841,0.2345,3054.4,3054.3,3.2078]
[1763469508740,0.2345,3054.4,3054.3,3.4496]
[1763469509340,3.21539899,3054.9,3054.4,0.2418]
[1763469509539,3.21539899,3054.9,3054.8,0.2418]
[1763469510547,0.00759899,3054.9,3054.8,3.4496]
[1763469511347,0.25649899,3054.9,3054.8,3.2078]
[1763469511737,0.25649899,3054.9,3054.8,3.4496]
[1763469512445,0.00759899,3054.9,3054.8,3.4496]
[1763469515545,0.25649899,3054.9,3054.8,3.4496]
[1763469516046,0.00759899,3054.9,3054.8,3.4496]
[1763469519346,3.2078,3055.4,3055.3,0.2418]
[1763469520247,3.4567,3055.8,3055.7,0.2418]
[1763469520447,0.00294122,3055.8,3055.7,0.2418]
[1763469520747,0.00294122,3055.8,3055.7,0.24570323]
[1763469522243,0.25184122,3055.8,3055.7,0.00390323]
[1763469526049,0.25184122,3055.8,3055.7,0.24570323]
[1763469526454,0.97250575,3055.8,3055.7,0.00390323]
[1763469526843,0.2489,3055.2,3055.1,3.2078]
[1763469527945,0.2489,3055.2,3055.1,3.21126921]
[1763469528354,0.1467,3055.5,3055.1,3.45306921]
[1763469528554,0.00294122,3055.8,3055.4,0.2418]
[1763469528750,0.72389914,3055.8,3055.4,0.2418]
[1763469528956,0.3956,3055.5,3055.4,0.2418]
[1763469529456,0.60634122,3055.9,3055.4,0.2418]
[1763469529754,0.72126256,3055.8,3055.4,0.2418]
[1763469529950,0.97016256,3055.8,3055.7,3.2078]
[1763469530346,0.97428068,3055.8,3055.7,3.2078]
[1763469531757,0.97428068,3055.8,3055.7,3.4496]
[1763469532659,0.72538068,3055.8,3055.7,3.4496]
[1763469532850,0.25301812,3055.8,3055.7,3.4496]
[1763469533050,0.97428068,3055.8,3055.7,3.4496]
[1763469533252,0.97428068,3055.8,3055.7,3.2078]
[1763469534457,0.97428068,3055.8,3055.7,3.4496]
[1763469535253,0.97428068,3055.8,3055.7,3.2078]
[1763469537862,0.97428068,3055.8,3055.7,3.4496]
[1763469538661,0.72538068,3055.8,3055.7,3.4496]
[1763469539062,0.00411812,3055.8,3055.7,3.4496]
[1763469539262,1.39956345,3056.1,3056.0,0.2263]
[1763469539563,0.96332598,3056.1,3056.0,0.2263]
[1763469540060,0.72782598,3056.1,3056.0,0.3674]
[1763469540250,0.73111893,3056.1,3056.0,0.3674]
[1763469540449,0.00817315,3056.1,3056.0,0.3674]
[1763469541252,1.15918325,3057.0,3056.9,0.2263]
[1763469541454,0.3851,3057.0,3056.5,3.3457]
[1763469541656,0.3851,3057.0,3056.9,0.2263]
[1763469541850,1.15918325,3057.1,3056.9,0.2263]
[1763469542161,1.15918325,3057.2,3057.1,0.2263]
[1763469542357,1.39862795,3057.2,3057.1,0.2263]
[1763469542558,0.2355,3056.8,3056.7,0.00490998]
[1763469542752,0.0039447,3057.2,3057.1,0.2263]
[1763469543966,0.2394447,3057.2,3057.1,0.2263]
[1763469544358,0.0039447,3057.2,3057.1,0.2263]
[1763469548067,0.2355,3057.1,3056.7,0.00490998]
[1763469548266,0.2355,3057.1,3057.0,0.2263]
[1763469548970,0.0039447,3057.2,3057.1,0.2263]
[1763469550269,0.00490998,3057.3,3057.2,0.2263]
[1763469550770,3.2078,3058.1,3058.0,0.2263]
[1763469551269,3.44708491,3058.1,3058.0,0.00331461]
[1763469552362,3.44708491,3058.1,3057.5,0.1411]
[1763469552564,0.3851,3057.5,3057.4,3.2078]
[1763469553069,0.3851,3057.5,3056.8,3.2078]
[1763469553274,0.2355,3056.9,3056.8,3.2078]
[1763469553472,0.2355,3056.9,3056.8,3.43751387]
[1763469554469,3.4433,3057.7,3057.0,0.1411]
[1763469554667,0.2355,3056.9,3056.8,3.21121387]
[1763469555176,0.2355,3056.9,3056.8,3.43751387]
[1763469555366,0.1496,3057.0,3056.8,3.43751387]
[1763469555367,0.1496,3057.5,3056.8,3.43751387]
[1763469555667,0.71937302,3057.4,3056.8,3.43751387]
[1763469556271,0.71937302,3057.4,3057.3,0.2263]
[1763469556470,3.2078,3057.7,3057.6,0.2263]
[1763469556670,4.16244984,3057.7,3057.6,0.2263]
[1763469556864,4.16238702,3057.7,3057.2,3.2078]
[1763469557173,0.2355,3057.3,3057.2,3.2078]
[1763469557470,0.2355,3057.3,3056.8,3.21121387]
[1763469558063,0.1496,3057.5,3057.2,0.2263]
[1763469558262,0.2355,3057.3,3056.8,3.21121387]
[1763469559473,0.2355,3056.9,3056.8,3.21121387]
[1763469559773,0.2355,3056.9,3056.8,0.00341387]
[1763469560173,0.2355,3056.9,3056.8,0.22971387]
[1763469560870,3.2078,3057.3,3056.8,0.23241387]
[1763469561068,0.2309,3056.9,3056.8,0.00341387]
[1763469562362,3.4387,3056.9,3056.8,0.00341387]
[1763469563163,0.3706,3056.5,3056.0,3.3489]
[1763469563368,0.2309,3056.1,3056.0,3.2078]
[1763469563772,0.1397,3056.5,3056.0,3.4368]
[1763469564072,0.1397,3056.5,3056.0,3.3398]
[1763469564073,0.3706,3056.5,3056.0,3.3398]
[1763469564260,3.3475,3056.5,3056.0,3.21103133]
[1763469564464,0.2309,3056.1,3056.0,3.21103133]
[1763469564663,3.3475,3056.5,3056.0,3.44003133]
[1763469565062,0.2309,3056.1,3056.0,3.44003133]
[1763469565271,3.3475,3056.5,3056.0,3.44003133]
[1763469566170,0.2309,3056.1,3056.0,3.44003133]
[1763469567169,0.00490998,3056.6,3056.5,0.3815]
[1763469567370,0.25160998,3056.6,3056.5,0.2411]
[1763469567772,0.00490998,3056.6,3056.5,0.3815]
[1763469568977,0.00490998,3056.6,3056.5,0.2411]
[1763469569282,0.2467,3056.1,3056.0,3.21103133]
[1763469569773,0.2467,3056.1,3056.0,0.00323133]
[1763469569974,0.3865,3056.0,3055.2,3.2078]
[1763469570173,0.2467,3055.3,3055.2,3.2078]
[1763469570375,4.51546852,3056.0,3055.2,3.4489]
[1763469571177,3.35134291,3056.0,3055.3,0.00490998]
[1763469571372,0.2467,3055.4,3055.3,0.00490998]
[1763469571970,0.2467,3055.4,3055.3,0.24600998]
[1763469572176,3.2078,3055.6,3055.3,0.24600998]
[1763469572177,3.2078,3055.6,3055.5,0.2411]
[1763469572971,0.2467,3055.4,3055.3,0.00490998]
[1763469574073,0.2467,3055.3,3054.3,3.2078]
[1763469574383,3.4545,3055.0,3054.5,0.1404]
[1763469574681,3.5943,3055.0,3054.3,3.2078]
[1763469575181,3.5943,3055.0,3054.4,1.25253342]
[1763469575182,3.59920998,3055.0,3054.4,1.25253342]